bitfinex/quotes_SOLUSD_20220306
["timestamp","ask_amount","ask_price","bid_price","bid_amount"]
[1646565224274,24.9984,86.425,86.35,17.3699]
[1646565224676,69.41,86.424,86.335,2.83613526]
[1646565224876,17.379,86.42,86.335,20.10043526]
[1646565225079,121.088,86.419,86.335,17.2643]
[1646565225475,115.3,86.417,86.335,17.2643]
[1646565225694,115.3,86.415,86.335,17.2643]
[1646565225894,115.3,86.405,86.324,25.27557177]
[1646565226197,115.3,86.395,86.311,25.27557177]
[1646565226397,69.41,86.386,86.301,2.83613526]
[1646565226597,69.41,86.376,86.295,25.27557177]
[1646565226794,138.3346,86.375,86.296,56.73003]
[1646565226994,115.3,86.373,86.296,56.73003]
[1646565227194,115.3,86.371,86.296,56.73003]
[1646565227399,115.3,86.371,86.279,25.27557177]
[1646565227595,115.3,86.369,86.279,25.27557177]
[1646565227798,5.792,86.368,86.279,25.27557177]
[1646565227996,115.3,86.367,86.28,20.22043526]
[1646565228195,115.3,86.365,86.28,20.22043526]
[1646565228396,115.3,86.363,86.28,2.83613526]
[1646565228597,115.3,86.361,86.275,49.4354]
[1646565228798,115.3,86.359,86.275,49.4354]
[1646565229104,5.792,86.36,86.275,49.4354]
[1646565229105,115.3,86.357,86.275,49.4354]
[1646565229296,115.3,86.355,86.275,49.4354]
[1646565229696,115.3,86.353,86.275,49.4354]
[1646565229899,115.3,86.353,86.272,47.61639207]
[1646565230100,115.3,86.349,86.272,47.61639207]
[1646565230300,115.3,86.347,86.272,47.61639207]
[1646565230497,115.3,86.345,86.272,47.61639207]
[1646565230699,115.3,86.343,86.272,47.61639207]
[1646565230897,115.3,86.341,86.272,47.61639207]
[1646565231098,115.3,86.341,86.246,2.83613526]
[1646565231099,115.3,86.335,86.246,2.83613526]
[1646565231297,164.5802,86.335,86.244,17.3538]
[1646565231797,168.3732,86.335,86.245,25.27557177]
[1646565231999,168.3732,86.335,86.246,51.67384792]
[1646565232198,113.3,86.329,86.246,51.67384792]
[1646565232398,113.3,86.327,86.247,25.27557177]
[1646565233502,113.3,86.333,86.247,25.27557177]
[1646565233703,113.3,86.331,86.247,25.27557177]
[1646565233904,60.13308283,86.324,86.247,25.27557177]
[1646565234106,137.352,86.323,86.247,25.27557177]
[1646565236508,24.052,86.323,86.247,25.27557177]
[1646565237608,24.052,86.323,86.25,17.3905]
[1646565238008,24.052,86.323,86.251,25.27557177]
[1646565238807,24.723,86.335,86.251,25.27557177]
[1646565239008,24.723,86.335,86.252,2.83613526]
[1646565239208,24.723,86.335,86.26,17.3883]
[1646565239810,30.4483,86.344,86.26,17.3883]
[1646565239811,5.793,86.344,86.262,115.3]
[1646565240009,49.1013,86.398,86.262,115.3]
[1646565240213,49.1013,86.398,86.281,115.3]
[1646565240411,49.1013,86.398,86.282,0.64393747]
[1646565240610,5.791,86.397,86.282,63.67110255]
[1646565240819,115.3,86.395,86.283,84.26813812]
[1646565241010,5.791,86.394,86.285,115.3]
[1646565241210,5.791,86.395,86.285,115.3]
[1646565241412,53.43684946,86.396,86.286,60.83496729]
[1646565241611,53.43684946,86.396,86.287,115.3]
[1646565241811,49.1013,86.398,86.287,157.04173349]
[1646565242012,49.1013,86.398,86.288,25.27557177]
[1646565242211,49.1013,86.398,86.31,17.3743]
[1646565242810,63.26556529,86.397,86.311,51.67384792]
[1646565243415,63.26556529,86.397,86.312,2.83613526]
[1646565243612,63.26556529,86.397,86.32,17.3751]
[1646565243812,49.1013,86.398,86.32,17.3751]
[1646565244012,4.76722407,86.45,86.32,17.3751]
[1646565244013,5.789,86.413,86.322,0.64393747]
[1646565244213,5.789,86.443,86.325,0.70253383]
[1646565244414,5.789,86.443,86.332,0.70253383]
[1646565244614,5.787,86.457,86.335,0.70253383]
[1646565244814,61.565343,86.456,86.34,17.3681]
[1646565245014,61.565343,86.456,86.342,0.70253383]
[1646565245213,61.565343,86.456,86.345,0.70253383]
[1646565245413,61.565343,86.456,86.347,115.3]
[1646565245613,61.565343,86.456,86.348,0.70253383]
[1646565245814,61.565343,86.456,86.349,5.785]
[1646565246018,61.565343,86.456,86.35,0.70253383]
[1646565246314,61.565343,86.456,86.371,51.67384792]
[1646565246515,61.565343,86.456,86.372,5.785]
[1646565246716,5.785,86.455,86.372,8.62113526]
[1646565246915,5.785,86.455,86.373,2.83613526]
[1646565247114,61.565343,86.456,86.374,5.785]
[1646565247316,61.565343,86.456,86.38,17.3618]
[1646565247515,176.865343,86.456,86.381,5.785]
[1646565247716,176.865343,86.456,86.376,5.785]
[1646565247916,176.865343,86.456,86.381,2.83613526]
[1646565248116,5.785,86.455,86.381,2.83613526]
[1646565248719,115.3,86.454,86.372,5.785]
[1646565248916,115.3,86.452,86.372,5.785]
[1646565249116,5.785,86.453,86.372,5.785]
[1646565249117,5.785,86.451,86.372,5.785]
[1646565249317,5.785,86.455,86.372,5.785]
[1646565249718,5.785,86.455,86.38,17.3621]
[1646565249917,61.565343,86.456,86.381,5.785]
[1646565250719,176.865343,86.456,86.381,5.785]
[1646565250919,176.865343,86.456,86.371,51.67384792]
[1646565251720,246.275343,86.456,86.37,2.83613526]
[1646565251920,115.3,86.454,86.35,2.83613526]
[1646565252120,184.71,86.452,86.35,2.83613526]
[1646565252319,184.71,86.45,86.35,2.83613526]
[1646565252519,184.71,86.448,86.35,2.83613526]
[1646565252721,184.71,86.446,86.367,57.05391747]
[1646565252920,115.3,86.444,86.367,57.05391747]
[1646565253220,115.3,86.442,86.367,57.05391747]
[1646565253420,69.41,86.437,86.367,57.05391747]
[1646565253621,190.495,86.436,86.356,5.785]
[1646565253824,193.23787329,86.436,86.351,5.787]
[1646565254022,190.495,86.436,86.322,2.83613526]
[1646565254223,5.29040844,86.434,86.323,5.788]
[1646565254522,184.71,86.432,86.323,5.788]
[1646565254724,115.3,86.427,86.324,46.58063625]
[1646565254924,115.3,86.415,86.325,5.788]
[1646565255324,115.3,86.413,86.325,5.788]
[1646565255924,49.7296,86.414,86.324,46.58063625]
[1646565255925,115.3,86.411,86.324,46.58063625]
[1646565256123,69.41,86.408,86.324,46.58063625]
[1646565256327,115.3,86.397,86.316,5.789]
[1646565256524,7.94,86.408,86.303,5.789]
[1646565256525,115.3,86.389,86.303,5.789]
[1646565256727,115.3,86.383,86.278,5.79]
[1646565256926,115.3,86.381,86.278,5.79]
[1646565257125,115.3,86.373,86.278,5.79]
[1646565257423,115.3,86.371,86.279,48.85681117]
[1646565257626,115.3,86.369,86.279,48.85681117]
[1646565257825,115.3,86.369,86.28,5.792]
[1646565258024,115.3,86.367,86.279,48.85681117]
[1646565258425,115.3,86.365,86.279,48.85681117]
[1646565258830,26.36097329,86.37,86.279,48.85681117]
[1646565258831,115.3,86.363,86.279,48.85681117]
[1646565259027,115.3,86.363,86.28,5.792]
[1646565259447,23.6181,86.37,86.28,5.792]
[1646565259648,115.3,86.369,86.28,5.792]
[1646565259848,23.6181,86.37,86.28,5.792]
[1646565260248,5.792,86.369,86.28,23.1749]
[1646565260549,115.3,86.368,86.28,5.792]
[1646565260848,5.792,86.367,86.279,48.85681117]
[1646565261049,23.6181,86.37,86.279,48.85681117]
[1646565261050,5.792,86.369,86.279,48.85681117]
[1646565261453,115.3,86.368,86.279,48.85681117]
[1646565261748,5.792,86.367,86.279,48.85681117]
[1646565261950,5.792,86.369,86.279,75.34571627]
[1646565262148,23.4516,86.382,86.279,75.34571627]
[1646565262149,23.4516,86.382,86.28,5.792]
[1646565262348,23.4516,86.382,86.28,62.98398219]
[1646565262548,23.4516,86.382,86.281,55.59086276]
[1646565262748,23.4516,86.382,86.283,115.3]
[1646565262948,23.4516,86.382,86.285,115.3]
[1646565263147,23.4516,86.382,86.287,115.3]
[1646565263348,23.4516,86.382,86.289,115.3]
[1646565263548,23.4516,86.382,86.29,5.791]
[1646565263849,23.4516,86.382,86.3,17.3781]
[1646565264051,23.4516,86.382,86.301,5.79]
[1646565264350,23.4516,86.382,86.301,29.32504036]
[1646565264749,23.4516,86.382,86.302,2.83613526]
[1646565264949,5.79,86.381,86.302,2.83613526]
[1646565265149,5.79,86.381,86.3,17.3781]
[1646565267252,23.4516,86.382,86.29,17.6631]
[1646565267253,115.3,86.38,86.29,17.6631]
[1646565268053,115.3,86.378,86.291,5.791]
[1646565268253,115.3,86.376,86.291,5.791]
[1646565269354,121.091,86.375,86.29,17.6631]
[1646565273660,115.3,86.375,86.291,5.791]
[1646565274460,5.791,86.374,86.29,17.6631]
[1646565274862,115.3,86.378,86.29,17.6631]
[1646565275061,114.8,86.376,86.29,17.6631]
[1646565275261,120.591,86.375,86.29,17.6631]
[1646565276159,5.791,86.375,86.29,17.6631]
[1646565276359,115.3,86.375,86.291,5.791]
[1646565276963,5.791,86.374,86.29,17.6631]
[1646565277160,115.3,86.373,86.29,17.6631]
[1646565277360,5.791,86.372,86.29,17.6631]
[1646565277562,5.791,86.38,86.29,17.6631]
[1646565277961,5.791,86.38,86.291,32.2799051]
[1646565278160,5.791,86.38,86.291,35.11604036]
[1646565278361,5.791,86.38,86.292,29.32504036]
[1646565278563,5.791,86.38,86.293,5.791]
[1646565278766,24.9966,86.381,86.293,32.2799051]
[1646565279163,24.9966,86.381,86.294,26.4889051]
[1646565279764,24.9966,86.381,86.295,2.83613526]
[1646565280164,24.9966,86.381,86.294,26.4889051]
[1646565280365,24.9966,86.381,86.296,26.4889051]
[1646565281166,24.9966,86.381,86.3,17.3782]
[1646565281566,24.9966,86.381,86.301,2.83613526]
[1646565281766,24.9966,86.381,86.301,29.32504036]
[1646565282169,24.9966,86.381,86.302,2.83613526]
[1646565282366,24.9966,86.381,86.302,29.32504036]
[1646565282666,24.9966,86.381,86.303,26.4889051]
[1646565284268,115.3,86.38,86.303,26.4889051]
[1646565284471,115.3,86.38,86.293,5.791]
[1646565284671,115.3,86.378,86.293,5.791]
[1646565284868,115.3,86.376,86.293,5.791]
[1646565285069,121.091,86.375,86.293,5.791]
[1646565287075,115.3,86.38,86.293,5.791]
[1646565287277,24.9966,86.381,86.293,32.2799051]
[1646565289574,115.3,86.38,86.293,32.2799051]
[1646565289781,115.3,86.378,86.29,17.6631]
[1646565290778,132.6865,86.38,86.29,17.6631]
[1646565291178,115.3,86.38,86.291,26.4889051]
[1646565291778,115.3,86.38,86.29,17.6631]
[1646565292477,24.9966,86.381,86.29,17.6631]
[1646565293098,5.791,86.38,86.3,17.3821]
[1646565293479,115.3,86.379,86.3,17.3821]
[1646565293680,115.3,86.377,86.3,17.3821]
[1646565293880,5.791,86.376,86.3,17.3821]
[1646565294080,5.791,86.38,86.3,17.3821]
[1646565294480,1.5617002,86.371,86.3,17.3821]
[1646565295381,24.9966,86.381,86.3,17.3821]
[1646565295382,1.5617002,86.375,86.3,17.3821]
[1646565295582,24.9966,86.381,86.301,2.83613526]
[1646565295782,24.9966,86.381,86.32,17.3768]
[1646565296481,24.9966,86.381,86.321,26.25020758]
[1646565297081,1.5617002,86.394,86.33,17.3748]
[1646565297283,1.5617002,86.395,86.33,17.3748]
[1646565297485,1.5617002,86.394,86.33,17.3748]
[1646565298084,1.5617002,86.397,86.33,17.3748]
[1646565299185,1.5617002,86.396,86.33,17.3748]
[1646565299584,1.5617002,86.398,86.33,17.3748]
[1646565299786,1.5617002,86.4,86.33,17.3748]
[1646565300088,1.5617002,86.401,86.33,17.3748]
[1646565300285,59.41837446,86.401,86.33,17.3748]
[1646565300486,1.5617002,86.401,86.331,5.789]
[1646565300685,24.1816,86.405,86.35,17.3711]
[1646565300888,24.1816,86.405,86.351,5.788]
[1646565301486,24.1816,86.405,86.352,48.85681117]
[1646565301685,24.1816,86.405,86.351,5.788]
[1646565301686,139.4816,86.405,86.351,5.788]
[1646565301886,1.5617002,86.404,86.323,5.788]
[1646565302186,1.5617002,86.398,86.323,5.788]
[1646565302387,1.5617002,86.395,86.323,5.788]
[1646565302589,1.5617002,86.393,86.323,5.788]
[1646565302790,1.5617002,86.394,86.324,54.88666193]
[1646565302987,1.5617002,86.394,86.325,5.789]
[1646565303786,1.5617002,86.394,86.324,54.88666193]
[1646565304590,1.5617002,86.391,86.324,54.88666193]
[1646565304788,1.5617002,86.392,86.324,54.88666193]
[1646565305390,1.5617002,86.394,86.324,54.88666193]
[1646565305591,1.5617002,86.393,86.324,54.88666193]
[1646565306395,1.5617002,86.388,86.324,54.88666193]
[1646565306595,1.5617002,86.386,86.324,54.88666193]
[1646565306794,7.3517002,86.386,86.324,54.88666193]
[1646565306996,1.5617002,86.393,86.325,5.79]
[1646565308196,1.5617002,86.4,86.33,17.3761]
[1646565308396,1.5617002,86.398,86.331,5.789]
[1646565309296,1.5617002,86.398,86.34,17.3738]
[1646565309497,1.5617002,86.412,86.341,5.789]
[1646565309797,1.5617002,86.415,86.341,23.38182839]
[1646565309997,1.5617002,86.422,86.343,115.3]
[1646565310198,1.5617002,86.431,86.345,120.6939772]
[1646565310402,1.5617002,86.436,86.36,17.368]
[1646565310601,1.5617002,86.443,86.361,26.61354198]
[1646565310799,1.5617002,86.443,86.362,115.3]
[1646565311001,1.5617002,86.443,86.364,115.3]
[1646565311200,1.5617002,86.458,86.365,0.63415542]
[1646565311402,1.5617002,86.47,86.367,115.3]
[1646565311600,1.5617002,86.47,86.38,17.3621]
[1646565311799,1.5617002,86.471,86.381,6.45018048]
[1646565312000,1.5617002,86.472,86.381,6.45018048]
[1646565312201,1.5617002,86.472,86.383,0.66518048]
[1646565312400,1.5617002,86.472,86.385,0.66518048]
[1646565312799,1.5617002,86.472,86.386,5.785]
[1646565313003,1.5617002,86.472,86.4,17.3603]
[1646565313201,1.5617002,86.471,86.401,5.784]
[1646565313600,1.5617002,86.468,86.401,5.784]
[1646565313799,1.5617002,86.469,86.401,5.784]
[1646565314000,1.5617002,86.469,86.4,17.3603]
[1646565314200,1.5617002,86.469,86.402,2.83613526]
[1646565314400,1.5617002,86.47,86.402,2.83613526]
[1646565314701,1.5617002,86.472,86.41,17.3593]
[1646565314999,52.33139068,86.473,86.41,17.3593]
[1646565315623,23.9664,86.479,86.41,17.3593]
[1646565316019,23.9664,86.479,86.411,5.784]
[1646565317419,23.9664,86.479,86.402,2.83613526]
[1646565317420,115.3,86.478,86.402,2.83613526]
[1646565317619,115.3,86.478,86.387,50.56634803]
[1646565317819,1.5617002,86.468,86.387,50.56634803]
[1646565318021,1.5617002,86.468,86.388,5.785]
[1646565318224,1.5617002,86.461,86.363,2.83613526]
[1646565318421,1.5617002,86.454,86.318,17.4679]
[1646565318625,1.5617002,86.453,86.354,2.83613526]
[1646565318820,115.3,86.451,86.355,5.786]
[1646565319021,115.3,86.451,86.368,5.785]
[1646565319222,115.3,86.449,86.369,60.57833283]
[1646565319422,115.3,86.448,86.37,5.785]
[1646565319824,63.59972127,86.45,86.37,23.1522]
[1646565320223,63.59972127,86.45,86.37,5.785]
[1646565320422,115.3,86.448,86.369,60.57833283]
[1646565320622,115.3,86.446,86.369,60.57833283]
[1646565320827,115.3,86.444,86.369,60.57833283]
[1646565322227,115.3,86.448,86.369,60.57833283]
[1646565322525,115.3,86.444,86.369,60.57833283]
[1646565322728,115.3,86.442,86.355,5.785]
[1646565322929,6.98,86.444,86.321,3.5792933]
[1646565322930,1.5617002,86.433,86.346,5.787]
[1646565323125,1.5617002,86.427,86.346,5.787]
[1646565323331,1.5617002,86.421,86.333,5.787]
[1646565323528,115.3,86.419,86.333,5.787]
[1646565323726,115.3,86.417,86.334,64.33010848]
[1646565323925,115.3,86.415,86.334,64.33010848]
[1646565324127,115.3,86.409,86.334,64.33010848]
[1646565324328,121.088,86.409,86.334,64.33010848]
[1646565324528,115.3,86.403,86.327,5.788]
[1646565324730,115.3,86.397,86.321,3.5792933]
[1646565324931,115.3,86.387,86.321,3.5792933]
[1646565325128,115.3,86.383,86.321,3.5792933]
[1646565325328,115.3,86.381,86.321,3.5792933]
[1646565325528,115.3,86.379,86.321,3.5792933]
[1646565327932,115.3,86.377,86.321,3.5792933]
[1646565328134,115.3,86.375,86.321,3.5792933]
[1646565328435,115.3,86.373,86.321,3.5792933]
[1646565328633,115.3,86.371,86.321,3.5792933]
[1646565328833,115.3,86.369,86.321,3.5792933]
[1646565329033,115.3,86.367,86.321,3.5792933]
[1646565329234,5.79,86.386,86.321,3.5792933]
[1646565329635,5.79,86.399,86.322,2.83613526]
[1646565330234,58.42222326,86.398,86.323,57.92595229]
[1646565330635,5.789,86.397,86.324,2.83613526]
[1646565330837,115.3,86.396,86.324,2.83613526]
[1646565331039,121.089,86.395,86.324,2.83613526]
[1646565332036,5.789,86.395,86.324,2.83613526]
[1646565332237,5.789,86.4,86.324,2.83613526]
[1646565332437,23.377,86.401,86.324,2.83613526]
[1646565332639,23.377,86.401,86.325,5.789]
[1646565334939,115.3,86.4,86.325,5.789]
[1646565335139,23.377,86.401,86.325,5.789]
[1646565335539,115.3,86.4,86.325,5.789]
[1646565339542,115.3,86.398,86.325,5.789]
[1646565339941,115.3,86.396,86.325,5.789]
[1646565340744,5.789,86.4,86.33,17.3752]
[1646565340943,23.377,86.401,86.33,17.3752]
[1646565341145,23.377,86.401,86.331,2.83613526]
[1646565342345,23.377,86.401,86.34,17.3727]
[1646565342546,1.5617002,86.425,86.34,23.4827]
[1646565342848,5.788,86.424,86.341,29.32107967]
[1646565343046,5.788,86.432,86.341,29.32107967]
[1646565343246,5.788,86.432,86.342,2.83613526]
[1646565343445,115.3,86.43,86.342,2.83613526]
[1646565343646,23.073,86.431,86.342,2.83613526]
[1646565344248,23.073,86.431,86.351,17.18106646]
[1646565344650,23.073,86.431,86.352,2.83613526]
[1646565344850,115.3,86.43,86.352,29.32107967]
[1646565345054,23.073,86.431,86.352,29.32107967]
[1646565345251,23.073,86.431,86.352,2.83613526]
[1646565345451,63.20516616,86.429,86.351,17.18106646]
[1646565345855,115.3,86.428,86.351,17.18106646]
[1646565346054,115.3,86.424,86.351,17.18106646]
[1646565347257,115.3,86.422,86.351,17.18106646]
[1646565347558,115.3,86.42,86.351,17.18106646]
[1646565347757,1.5617002,86.415,86.351,17.18106646]
[1646565348157,1.5617002,86.415,86.34,17.3734]
[1646565348557,1.5617002,86.414,86.326,50.65624441]
[1646565348758,1.5617002,86.407,86.326,50.65624441]
[1646565348958,1.5617002,86.406,86.326,50.65624441]
[1646565349162,1.5617002,86.406,86.332,46.16523628]
[1646565350775,1.5617002,86.403,86.332,46.16523628]
[1646565351176,63.87835523,86.403,86.34,17.3732]
[1646565351375,63.87835523,86.403,86.332,46.16523628]
[1646565351577,1.5617002,86.402,86.332,46.16523628]
[1646565351976,1.5617002,86.401,86.332,46.16523628]
[1646565352176,1.5617002,86.402,86.332,46.16523628]
[1646565352777,116.8617002,86.402,86.332,46.16523628]
[1646565352976,1.5617002,86.401,86.332,46.16523628]
[1646565353176,116.8617002,86.402,86.332,46.16523628]
[1646565353576,115.3,86.402,86.332,46.16523628]
[1646565354381,116.8617002,86.402,86.332,46.16523628]
[1646565355580,1.5617002,86.402,86.332,46.16523628]
[1646565355781,1.5617002,86.411,86.34,17.3735]
[1646565355983,1.5617002,86.415,86.34,17.3735]
[1646565356281,1.5617002,86.416,86.341,2.83613526]
[1646565356483,1.5617002,86.418,86.341,2.83613526]
[1646565356886,1.5617002,86.417,86.341,2.83613526]
[1646565357283,1.5617002,86.42,86.341,2.83613526]
[1646565357485,1.5617002,86.418,86.341,2.83613526]
[1646565358084,1.5617002,86.418,86.35,17.3713]
[1646565358484,1.5617002,86.418,86.351,2.83613526]
[1646565359387,1.5617002,86.419,86.361,28.94178247]
[1646565360388,1.5617002,86.423,86.361,28.94178247]
[1646565360788,1.5617002,86.424,86.361,28.94178247]
[1646565360987,1.5617002,86.422,86.37,17.3673]
[1646565361587,1.5617002,86.423,86.37,17.3673]
[1646565361788,1.5617002,86.423,86.361,46.55538247]
[1646565361991,1.5617002,86.421,86.361,46.55538247]
[1646565362388,1.5617002,86.42,86.361,46.55538247]
[1646565362588,1.5617002,86.422,86.361,46.55538247]
[1646565362990,1.5617002,86.423,86.361,46.55538247]
[1646565363392,1.5617002,86.422,86.361,46.55538247]
[1646565364499,1.5617002,86.421,86.361,46.55538247]
[1646565364893,1.5617002,86.422,86.361,46.55538247]
[1646565365698,1.5617002,86.423,86.361,46.55538247]
[1646565366597,1.5617002,86.42,86.361,46.55538247]
[1646565367200,1.5617002,86.42,86.361,17.6136]
[1646565367401,1.5617002,86.416,86.341,23.5913]
[1646565367600,1.5617002,86.407,86.341,23.5913]
[1646565367804,1.5617002,86.4,86.327,2.83613526]
[1646565368005,115.3,86.398,86.317,2.83613526]
[1646565368203,52.81291139,86.391,86.317,2.83613526]
[1646565368402,1.5617002,86.381,86.314,57.99937174]
[1646565368602,8.0617002,86.381,86.314,57.99937174]
[1646565369302,1.5617002,86.38,86.314,57.99937174]
[1646565369505,1.5617002,86.381,86.314,57.99937174]
[1646565370003,1.5617002,86.382,86.314,57.99937174]
[1646565370204,1.5617002,86.38,86.314,57.99937174]
[1646565370603,1.5617002,86.377,86.307,17.6362]
[1646565370806,1.5617002,86.375,86.307,17.6362]
[1646565371004,1.5617002,86.38,86.307,17.6362]
[1646565371504,1.5617002,86.38,86.317,54.81879108]
[1646565371704,1.5617002,86.381,86.317,54.81879108]
[1646565371906,1.5617002,86.381,86.307,17.6362]
[1646565372307,1.5617002,86.38,86.307,17.6362]
[1646565372706,1.5617002,86.379,86.307,17.6362]
[1646565372907,1.5617002,86.38,86.312,47.59082715]
[1646565374009,1.5617002,86.383,86.312,47.59082715]
[1646565374207,1.5617002,86.382,86.312,47.59082715]
[1646565374409,1.5617002,86.38,86.312,47.59082715]
[1646565375627,115.3,86.378,86.312,47.59082715]
[1646565375828,115.3,86.376,86.312,47.59082715]
[1646565376028,5.79,86.375,86.312,47.59082715]
[1646565376828,115.3,86.378,86.312,47.59082715]
[1646565377028,1.5617002,86.384,86.312,47.59082715]
[1646565377233,1.5617002,86.386,86.313,2.83613526]
[1646565377629,1.5617002,86.385,86.313,2.83613526]
[1646565377828,23.0149,86.388,86.313,2.83613526]
[1646565377829,1.5617002,86.382,86.313,2.83613526]
[1646565378329,1.5617002,86.381,86.313,2.83613526]
[1646565378529,1.5617002,86.382,86.313,2.83613526]
[1646565379230,1.5617002,86.382,86.32,17.3782]
[1646565379431,5.79,86.381,86.321,49.49136652]
[1646565379631,5.79,86.385,86.321,49.49136652]
[1646565380034,24.5766002,86.388,86.321,49.49136652]
[1646565380431,23.0149,86.388,86.321,49.49136652]
[1646565382231,23.0149,86.388,86.33,17.3762]
[1646565382631,1.5617002,86.398,86.331,2.83613526]
[1646565382833,1.5617002,86.407,86.331,31.70252434]
[1646565383032,7.3507002,86.406,86.332,28.86638908]
[1646565383246,1.5617002,86.411,86.332,58.19613542]
[1646565383443,1.5617002,86.416,86.333,29.32974634]
[1646565383644,50.57664761,86.411,86.333,72.96149521]
[1646565383843,50.57664761,86.411,86.334,72.96149521]
[1646565384044,115.3,86.41,86.334,46.46788413]
[1646565384244,115.3,86.41,86.335,2.83613526]
[1646565384444,50.57664761,86.411,86.335,2.83613526]
[1646565385444,115.3,86.41,86.335,2.83613526]
[1646565386245,115.3,86.41,86.34,17.374]
[1646565386644,115.3,86.41,86.341,2.83613526]
[1646565387652,115.3,86.41,86.35,17.3719]
[1646565387947,115.3,86.41,86.351,25.61565223]
[1646565388151,50.57664761,86.411,86.351,25.61565223]
[1646565390353,115.3,86.41,86.351,25.61565223]
[1646565390550,50.57664761,86.411,86.351,25.61565223]
[1646565391953,1.5617002,86.413,86.351,25.61565223]
[1646565392153,1.5617002,86.414,86.36,17.3701]
[1646565392354,1.5617002,86.42,86.36,17.3701]
[1646565392553,1.5617002,86.421,86.36,17.3701]
[1646565392958,63.04273812,86.42,86.36,17.3701]
[1646565393655,1.5617002,86.423,86.36,17.3701]
[1646565393857,1.5617002,86.422,86.361,31.70252434]
[1646565394059,1.5617002,86.426,86.37,17.3646]
[1646565394258,1.5617002,86.436,86.37,17.3646]
[1646565394561,1.5617002,86.439,86.371,58.19613542]
[1646565394758,1.5617002,86.442,86.371,72.96149521]
[1646565395058,1.5617002,86.442,86.362,23.0509]
[1646565395059,1.5617002,86.442,86.372,72.96149521]
[1646565395458,1.5617002,86.451,86.373,72.97336855]
[1646565395656,1.5617002,86.456,86.373,72.97336855]
[1646565395857,1.5617002,86.455,86.374,72.97336855]
[1646565396057,1.5617002,86.455,86.39,17.3621]
[1646565396258,1.5617002,86.455,86.391,49.49136652]
[1646565396259,53.80602615,86.454,86.391,49.49136652]
[1646565396557,53.80602615,86.454,86.391,52.32750178]
[1646565397057,1.5617002,86.46,86.392,2.83613526]
[1646565397258,1.5617002,86.468,86.392,2.83613526]
[1646565397458,1.5617002,86.467,86.392,2.83613526]
[1646565398058,54.00986511,86.466,86.392,2.83613526]
[1646565398259,54.00986511,86.466,86.4,17.3607]
[1646565398659,54.00986511,86.466,86.401,2.83613526]
[1646565398862,115.3,86.465,86.401,2.83613526]
[1646565399059,115.3,86.463,86.391,66.75446652]
[1646565399260,115.3,86.463,86.391,17.2631]
[1646565399462,1.5617002,86.459,86.376,2.83613526]
[1646565399662,1.5617002,86.458,86.376,2.83613526]
[1646565400064,24.0357,86.465,86.376,2.83613526]
[1646565400065,1.5617002,86.457,86.376,2.83613526]
[1646565400265,1.5617002,86.455,86.376,2.83613526]
[1646565400467,1.5617002,86.456,86.377,54.89550092]
[1646565400868,1.5617002,86.455,86.38,17.3658]
[1646565401884,1.5617002,86.454,86.38,17.3658]
[1646565402384,1.5617002,86.454,86.38,20.20193526]
[1646565403388,115.3,86.452,86.38,20.20193526]
[1646565403586,115.3,86.45,86.38,20.20193526]
[1646565403989,184.71,86.446,86.38,20.20193526]
[1646565404189,115.3,86.444,86.377,54.89550092]
[1646565404390,115.3,86.442,86.377,54.89550092]
[1646565404587,60.60342346,86.439,86.377,54.89550092]
[1646565404787,121.085,86.438,86.377,54.89550092]
[1646565405687,115.3,86.438,86.377,54.89550092]
[1646565406988,115.3,86.438,86.378,2.83613526]
[1646565407188,60.60342346,86.439,86.38,17.3659]
[1646565407689,60.60342346,86.439,86.381,2.83613526]
[1646565408391,115.3,86.438,86.381,2.83613526]
[1646565410092,1.5617002,86.436,86.381,2.83613526]